[Event "24th Barcelona Open-A 2019"]
[Site "Barcelona"]
[Date "2019.10.04"]
[Round "8.8"]
[White "Perez Mitjans, Orelvis"]
[Black "Moussard, Jules"]
[Result "1-0"]
[ECO "B52"]
[WhiteElo "2409"]
[BlackElo "2608"]
[Annotator "ChessBase"]
[PlyCount "87"]
[EventDate "2019.09.27"]
[EventType "swiss"]
[EventCountry "ESP"]
[SourceTitle "playchess.com"]
[Source "ChessBase"]
[SourceQuality "1"]
[TimeControl "5400+30"]

1. e4 {[%emt 0:00:00]} c5 {[%emt 0:00:00]} 2. Nf3 {[%emt 0:00:00]} d6 {[%emt 0:00:00]} 3. Bb5+ {[%emt 0:00:05]} Bd7 {[%emt 0:00:00]} 4. Bxd7+ {[%emt 0:00:40]} Nxd7 {[%emt 0:00:05]} 5. c4 {[%emt 0:00:35]} Ngf6 {[%emt 0:11:46]} 6. O-O {[%emt 0:00:08]} Nxe4 {[%emt 0:05:51]} 7. d4 {[%emt 0:00:10]} e6 {[%emt 0:01:22]} 8. dxc5 {[%emt 0:08:40]} Nexc5 {[%emt 0:06:04]} 9. Nc3 {[%emt 0:12:34]} Nf6 {[%emt 0:01:00]} 10. b4 {[%emt 0:08:58]} Nce4 {[%emt 0:01:34]} 11. Nxe4 {[%emt 0:00:37]} Nxe4 {[%emt 0:00:05]} 12. Bb2 {[%emt 0:00:16]} Nf6 {[%emt 0:08:31]} 13. Bxf6 {[%emt 0:00:10]} gxf6 {[%emt 0:00:04]} 14. Nd4 {[%emt 0:06:04]} Qd7 {[%emt 0:00:13]} 15. Qh5 {[%emt 0:01:47]} O-O-O {[%emt 0:03:33]} 16. Rfd1 {[%emt 0:04:44]} Kb8 {[%emt 0:02:11]} 17. c5 {[%emt 0:08:58]} e5 {[%emt 0:06:22]} 18. Nf5 {[%emt 0:06:10]} d5 {[%emt 0:00:26]} 19. Rac1 {[%emt 0:00:39]} Rc8 {[%emt 0:03:34]} 20. a3 {[%emt 0:09:54]} d4 {[%emt 0:02:09]} 21. h4 {[%emt 0:00:48]} h6 {[%emt 0:05:15]} 22. g3 {[%emt 0:03:32]} Rg8 {[%emt 0:02:01]} 23. Rb1 {[%emt 0:00:34]} Rg6 {[%emt 0:02:30]} 24. Rbc1 {[%emt 0:04:07]} Qc6 {[%emt 0:05:38]} 25. Qe2 {[%emt 0:03:07]} Qe6 {[%emt 0:00:10]} 26. Qf3 {[%emt 0:01:02]} e4 {[%emt 0:01:48]} 27. Qf4+ {[%emt 0:01:03]} Qe5 {[%emt 0:00:15]} 28. Kf1 {[%emt 0:01:28]} Qxf4 {[%emt 0:01:42]} 29. gxf4 {[%emt 0:00:36]} Rg4 {[%emt 0:00:40]} 30. Rxd4 {[%emt 0:00:44]} Rxf4 {[%emt 0:00:04]} 31. Rd5 {[%emt 0:00:48]} a5 {[%emt 0:02:06]} 32. b5 e3 {[%emt 0:03:07]} 33. Nxe3 {[%emt 0:02:20]} Rxh4 {[%emt 0:00:05]} 34. Rc3 {[%emt 0:00:24]} Ra4 {[%emt 0:08:11]} 35. c6 {[%emt 0:02:32]} bxc6 {[%emt 0:01:38]} 36. bxc6 {[%emt 0:00:05]} Rxa3 {[%emt 0:01:00]} 37. Rb5+ {[%emt 0:00:53]} Kc7 {[%emt 0:00:17]} 38. Rb7+ {[%emt 0:00:09]} Kd8 {[%emt 0:00:05]} 39. Rc4 {[%emt 0:03:15]} Rd3 {[%emt 0:01:43]} 40. Rg4 {[%emt 0:00:48]} Rxc6 {[%emt 0:04:16]} 41. Rg8 {[%emt 0:00:08]} Rd7 {[%emt 0:01:05]} 42. Rxf8+ {[%emt 0:00:35]} Ke7 {[%emt 0:00:01]} 43. Nf5+ {[%emt 0:00:22]} Ke6 {[%emt 0:00:02]} 44. Re8+ {[%emt 0:00:07]} 1-0

[Event "24th Barcelona Open-A 2019"]
[Site "Barcelona"]
[Date "2019.10.04"]
[Round "8.9"]
[White "Shevchenko, Kirill"]
[Black "Cruz, Jonathan"]
[Result "1-0"]
[ECO "C96"]
[WhiteElo "2541"]
[BlackElo "2409"]
[Annotator "ChessBase"]
[PlyCount "87"]
[EventDate "2019.09.27"]
[EventType "swiss"]
[EventCountry "ESP"]
[SourceTitle "playchess.com"]
[Source "ChessBase"]
[SourceQuality "1"]
[TimeControl "5400+30"]

1. e4 {[%emt 0:00:00]} e5 {[%emt 0:25:23]} 2. Nf3 {[%emt 0:00:00]} Nc6 {[%emt 0:01:41]} 3. Bb5 {[%emt 0:00:00]} a6 {[%emt 0:00:03]} 4. Ba4 {[%emt 0:00:00]} Nf6 {[%emt 0:00:03]} 5. O-O {[%emt 0:00:00]} Be7 {[%emt 0:00:03]} 6. Re1 {[%emt 0:00:00]} b5 {[%emt 0:00:03]} 7. Bb3 {[%emt 0:00:00]} d6 {[%emt 0:00:04]} 8. c3 {[%emt 0:00:00]} O-O {[%emt 0:00:07]} 9. h3 {[%emt 0:00:02]} Na5 {[%emt 0:00:35]} 10. Bc2 {[%emt 0:00:05]} c5 {[%emt 0:00:08]} 11. d4 {[%emt 0:00:30]} Nd7 {[%emt 0:00:13]} 12. d5 {[%emt 0:03:22]} Nb6 {[%emt 0:02:44]} 13. Nbd2 {[%emt 0:05:38]} Bd7 {[%emt 0:01:38]} 14. Nf1 {[%emt 0:03:36]} f5 {[%emt 0:06:34]} 15. exf5 {[%emt 0:03:26]} Bxf5 {[%emt 0:00:05]} 16. Bxf5 {[%emt 0:06:50]} Rxf5 {[%emt 0:00:06]} 17. Ne3 {[%emt 0:18:54]} Rf7 {[%emt 0:00:28]} 18. Nd2 {[%emt 0:07:38]} Bg5 {[%emt 0:12:37]} 19. Ne4 {[%emt 0:02:13]} Bf4 {[%emt 0:03:32]} 20. b3 {[%emt 0:10:07]} c4 {[%emt 0:13:15]} 21. g3 {[%emt 0:10:36]} Bh6 {[%emt 0:03:18]} 22. Ba3 {[%emt 0:03:59]} Bxe3 {[%emt 0:04:36]} 23. Rxe3 {[%emt 0:05:07]} Nb7 {[%emt 0:01:08]} 24. Rf3 {[%emt 0:03:14]} Rxf3 {[%emt 0:10:12]} 25. Qxf3 {[%emt 0:00:04]} Qd7 {[%emt 0:00:12]} 26. Rd1 {[%emt 0:02:49]} a5 {[%emt 0:05:21]} 27. Qe3 {[%emt 0:03:27]} Qc7 {[%emt 0:00:47]} 28. Ng5 {[%emt 0:02:31]} Nd8 {[%emt 0:04:06]} 29. Ne6 {[%emt 0:02:28]} Nxe6 {[%emt 0:02:22]} 30. dxe6 {[%emt 0:00:03]} b4 {[%emt 0:01:18]} 31. cxb4 {[%emt 0:01:09]} a4 {[%emt 0:00:06]} 32. b5 {[%emt 0:03:36]} d5 {[%emt 0:01:23]} 33. Bc5 {[%emt 0:01:45]} d4 {[%emt 0:00:50]} 34. Bxb6 {[%emt 0:00:03]} Qxb6 {[%emt 0:00:05]} 35. Qxe5 {[%emt 0:00:03]} axb3 {[%emt 0:00:18]} 36. axb3 {[%emt 0:00:27]} c3 {[%emt 0:01:52]} 37. e7 {[%emt 0:01:42]} Re8 {[%emt 0:00:14]} 38. Qd5+ {[%emt 0:00:53]} Kh8 {[%emt 0:00:06]} 39. Qf7 {[%emt 0:00:25]} Qb8 {[%emt 0:00:59]} 40. Rxd4 {[%emt 0:00:18]} c2 {[%emt 0:00:03]} 41. Rc4 {[%emt 0:00:17]} h6 {[%emt 0:00:09]} 42. Rxc2 {[%emt 0:00:16]} Qxb5 {[%emt 0:00:04]} 43. Rd2 {[%emt 0:00:46]} Kh7 {[%emt 0:00:05]} 44. Rd8 1-0

[Event "24th Barcelona Open-A 2019"]
[Site "Barcelona"]
[Date "2019.10.04"]
[Round "8.10"]
[White "Aroshidze, Levan"]
[Black "Bharath Subramaniyam H"]
[Result "1/2-1/2"]
[ECO "B33"]
[WhiteElo "2517"]
[BlackElo "2417"]
[Annotator "ChessBase"]
[PlyCount "75"]
[EventDate "2019.09.27"]
[EventType "swiss"]
[EventCountry "ESP"]
[SourceTitle "playchess.com"]
[Source "ChessBase"]
[SourceQuality "1"]
[TimeControl "5400+30"]

1. e4 {[%emt 0:00:00]} c5 {[%emt 0:00:00]} 2. Nf3 {[%emt 0:00:00]} Nc6 {[%emt 0:00:56]} 3. d4 {[%emt 0:00:17]} cxd4 {[%emt 0:00:07]} 4. Nxd4 {[%emt 0:00:05]} Nf6 {[%emt 0:00:19]} 5. Nc3 {[%emt 0:00:07]} e5 {[%emt 0:00:23]} 6. Ndb5 {[%emt 0:00:05]} d6 {[%emt 0:00:06]} 7. Bg5 {[%emt 0:00:08]} a6 {[%emt 0:00:07]} 8. Na3 {[%emt 0:00:05]} b5 {[%emt 0:00:07]} 9. Nd5 {[%emt 0:00:05]} Be7 {[%emt 0:00:08]} 10. Bxf6 {[%emt 0:00:07]} Bxf6 {[%emt 0:00:05]} 11. c4 {[%emt 0:00:11]} b4 {[%emt 0:00:56]} 12. Nc2 {[%emt 0:00:06]} O-O {[%emt 0:00:12]} 13. g3 {[%emt 0:00:05]} Bg5 {[%emt 0:00:13]} 14. Bg2 {[%emt 0:00:30]} Qa5 {[%emt 0:01:18]} 15. O-O {[%emt 0:02:55]} Qc5 {[%emt 0:00:37]} 16. Qd3 {[%emt 0:00:17]} Be6 {[%emt 0:01:51]} 17. h4 {[%emt 0:07:32]} Bd8 {[%emt 0:05:23]} 18. Rfd1 {[%emt 0:13:56]} Bb6 {[%emt 0:06:03]} 19. Qe2 {[%emt 0:00:44]} Rad8 {[%emt 0:04:26]} 20. Rd2 {[%emt 0:03:18]} Ba7 {[%emt 0:02:06]} 21. b3 {[%emt 0:05:05]} a5 {[%emt 0:08:14]} 22. Nc7 {[%emt 0:12:07]} a4 {[%emt 0:10:06]} 23. Nb5 {[%emt 0:01:40]} Na5 {[%emt 0:03:14]} 24. Ne3 {[%emt 0:16:07]} axb3 {[%emt 0:08:41]} 25. axb3 {[%emt 0:03:48]} Nxb3 {[%emt 0:04:04]} 26. Rxa7 {[%emt 0:00:09]} Nxd2 {[%emt 0:00:23]} 27. Rc7 {[%emt 0:05:22]} Bxc4 {[%emt 0:03:26]} 28. Qxd2 {[%emt 0:00:08]} Qxb5 {[%emt 0:00:07]} 29. Rxc4 {[%emt 0:00:04]} Rb8 {[%emt 0:01:07]} 30. Bf1 {[%emt 0:08:13]} b3 {[%emt 0:01:50]} 31. Qb2 {[%emt 0:00:32]} Qa5 {[%emt 0:01:22]} 32. Rc1 {[%emt 0:00:29]} Qa2 {[%emt 0:01:50]} 33. Qxa2 {[%emt 0:07:27]} bxa2 {[%emt 0:00:39]} 34. Ra1 {[%emt 0:00:04]} Rb2 {[%emt 0:00:54]} 35. Nc4 {[%emt 0:00:46]} Rc2 {[%emt 0:00:34]} 36. Ne3 {[%emt 0:00:29]} Rb2 {[%emt 0:00:20]} 37. Nc4 {[%emt 0:00:34]} Rc2 {[%emt 0:00:21]} 38. Ne3 {[%emt 0:00:13]} 1/2-1/2

[Event "24th Barcelona Open-A 2019"]
[Site "Barcelona"]
[Date "2019.10.04"]
[Round "8.11"]
[White "Priasmoro, Novendra"]
[Black "Song, Raymond"]
[Result "1-0"]
[ECO "B27"]
[WhiteElo "2484"]
[BlackElo "2456"]
[Annotator "ChessBase"]
[PlyCount "141"]
[EventDate "2019.09.27"]
[EventType "swiss"]
[EventCountry "ESP"]
[SourceTitle "playchess.com"]
[Source "ChessBase"]
[SourceQuality "1"]
[TimeControl "5400+30"]

1. e4 {[%emt 0:00:00]} c5 {[%emt 0:00:00]} 2. Nf3 {[%emt 0:00:00]} g6 {[%emt 0:00:15]} 3. c3 {[%emt 0:00:12]} d5 {[%emt 0:00:09]} 4. e5 {[%emt 0:00:06]} Nc6 {[%emt 0:00:09]} 5. d4 {[%emt 0:00:05]} cxd4 {[%emt 0:00:05]} 6. cxd4 {[%emt 0:00:04]} Bg4 {[%emt 0:00:06]} 7. Bb5 {[%emt 0:02:13]} Rc8 {[%emt 0:00:06]} 8. O-O {[%emt 0:01:00]} a6 {[%emt 0:00:04]} 9. Bxc6+ {[%emt 0:00:23]} Rxc6 {[%emt 0:00:08]} 10. h3 {[%emt 0:00:10]} Rxc1 {[%emt 0:16:29]} 11. Qxc1 {[%emt 0:01:29]} Bxf3 {[%emt 0:00:05]} 12. gxf3 {[%emt 0:00:05]} Bh6 {[%emt 0:02:35]} 13. f4 {[%emt 0:05:36]} e6 {[%emt 0:01:24]} 14. Nc3 {[%emt 0:00:20]} Ne7 {[%emt 0:05:37]} 15. Ne2 {[%emt 0:00:09]} O-O {[%emt 0:00:27]} 16. Qc3 {[%emt 0:00:22]} f6 {[%emt 0:02:16]} 17. Kh2 {[%emt 0:00:46]} Nf5 {[%emt 0:02:45]} 18. Rg1 {[%emt 0:09:40]} fxe5 {[%emt 0:01:14]} 19. dxe5 {[%emt 0:04:35]} Qb6 {[%emt 0:06:20]} 20. Raf1 {[%emt 0:02:20]} Qb5 {[%emt 0:08:35]} 21. Qc2 {[%emt 0:04:20]} Ne7 {[%emt 0:00:34]} 22. a4 {[%emt 0:07:53]} Qb4 {[%emt 0:01:12]} 23. Rg4 {[%emt 0:00:26]} Rc8 {[%emt 0:02:04]} 24. Qd3 {[%emt 0:00:11]} Nf5 {[%emt 0:06:38]} 25. b3 {[%emt 0:01:45]} Kf7 {[%emt 0:00:52]} 26. Rfg1 {[%emt 0:08:28]} Bf8 {[%emt 0:02:25]} 27. Kh1 {[%emt 0:06:57]} Be7 {[%emt 0:00:07]} 28. Rd1 {[%emt 0:01:45]} Qb6 {[%emt 0:00:28]} 29. Rf1 {[%emt 0:04:49]} Rc6 {[%emt 0:00:35]} 30. Rgg1 {[%emt 0:02:20]} Qb4 {[%emt 0:02:56]} 31. Rc1 {[%emt 0:01:35]} Bc5 {[%emt 0:00:27]} 32. Rgf1 {[%emt 0:03:27]} Ke7 {[%emt 0:00:52]} 33. Rc3 {[%emt 0:00:45]} Kd7 {[%emt 0:00:09]} 34. Qc2 {[%emt 0:02:51]} Nd4 {[%emt 0:05:59]} 35. Nxd4 {[%emt 0:00:15]} Qxd4 {[%emt 0:02:10]} 36. Rc1 {[%emt 0:05:33]} b6 {[%emt 0:05:08]} 37. Rc4 {[%emt 0:01:10]} dxc4 {[%emt 0:01:25]} 38. Rd1 {[%emt 0:00:18]} c3 {[%emt 0:00:46]} 39. Rxd4+ {[%emt 0:03:58]} Bxd4 {[%emt 0:00:01]} 40. Kg2 {[%emt 0:00:16]} b5 {[%emt 0:01:11]} 41. axb5 {[%emt 0:01:05]} axb5 {[%emt 0:00:01]} 42. Kf3 {[%emt 0:02:09]} b4 {[%emt 0:00:40]} 43. h4 {[%emt 0:00:21]} Bb6 {[%emt 0:04:07]} 44. h5 {[%emt 0:03:05]} Kc8 {[%emt 0:01:23]} 45. hxg6 {[%emt 0:00:56]} hxg6 46. Ke2 {[%emt 0:01:20]} Kb8 {[%emt 0:05:24]} 47. Kd1 {[%emt 0:01:36]} Rc7 {[%emt 0:00:20]} 48. Kc1 {[%emt 0:03:31]} Ka7 {[%emt 0:01:02]} 49. Qa2+ {[%emt 0:03:05]} Kb7 {[%emt 0:00:17]} 50. Qa4 {[%emt 0:02:56]} c2 {[%emt 0:01:16]} 51. Qxb4 {[%emt 0:00:04]} Rc5 {[%emt 0:03:06]} 52. Qe4+ {[%emt 0:00:14]} Rc6 {[%emt 0:00:23]} 53. b4 {[%emt 0:01:06]} Kc7 {[%emt 0:00:00]} 54. b5 {[%emt 0:00:42]} Rc3 {[%emt 0:00:06]} 55. Qb4 {[%emt 0:00:36]} Rc5 {[%emt 0:00:02]} 56. Qd4 {[%emt 0:00:21]} Kb7 {[%emt 0:01:29]} 57. Qe4+ {[%emt 0:01:01]} Ka7 {[%emt 0:00:11]} 58. Qxg6 {[%emt 0:01:25]} Rc7 {[%emt 0:00:55]} 59. Qxe6 {[%emt 0:00:43]} Bxf2 {[%emt 0:00:14]} 60. Qb3 {[%emt 0:00:46]} Kb6 {[%emt 0:04:11]} 61. f5 {[%emt 0:00:31]} Bh4 {[%emt 0:02:52]} 62. Qe3+ {[%emt 0:00:53]} Kxb5 {[%emt 0:00:01]} 63. f6 {[%emt 0:00:15]} Rc5 {[%emt 0:02:48]} 64. Qh6 {[%emt 0:02:04]} Be1 {[%emt 0:01:31]} 65. f7 {[%emt 0:01:46]} Bb4 {[%emt 0:00:03]} 66. Qe3 {[%emt 0:00:08]} Rc7 {[%emt 0:01:39]} 67. Qb3 {[%emt 0:00:52]} Ka5 {[%emt 0:03:51]} 68. Qxb4+ {[%emt 0:00:16]} Kxb4 {[%emt 0:00:01]} 69. f8=Q+ {[%emt 0:00:13]} Kc3 {[%emt 0:00:08]} 70. Qa3+ {[%emt 0:00:13]} Kc4 {[%emt 0:00:08]} 71. Qd6 {[%emt 0:00:08] Kd5} 1-0

[Event "24th Barcelona Open-A 2019"]
[Site "Barcelona"]
[Date "2019.10.04"]
[Round "8.12"]
[White "Cuhendi, Sean Winshand"]
[Black "Vehi Bach, Victor Manuel"]
[Result "1-0"]
[ECO "B80"]
[WhiteElo "2425"]
[BlackElo "2331"]
[Annotator "NA"]
[PlyCount "79"]
[EventDate "2019.09.27"]
[EventType "swiss"]
[EventCountry "ESP"]
[SourceTitle "playchess.com"]
[Source "ChessBase"]
[SourceQuality "1"]
[TimeControl "5400+30"]

1. e4 c5 {[%emt 0:00:00]} 2. Nf3 {[%emt 0:01:45]} e6 {[%emt 0:00:00]} 3. d4 {[%emt 0:00:24]} cxd4 {[%emt 0:00:00]} 4. Nxd4 {[%emt 0:00:07]} Nf6 {[%emt 0:00:02]} 5. Nc3 {[%emt 0:00:11]} d6 {[%emt 0:00:08]} 6. Be3 {[%emt 0:00:48]} Be7 {[%emt 0:00:31]} 7. g4 h5 {[%emt 0:01:22]} 8. gxh5 {[%emt 0:01:47]} Rxh5 {[%emt 0:00:40]} 9. Be2 {[%emt 0:03:34]} Rh3 {[%emt 0:06:29]} 10. Qd2 {[%emt 0:12:28]} a6 11. O-O-O b5 {[%emt 0:18:34]} 12. f3 {[%emt 0:12:30]} Bb7 {[%emt 0:14:16]} 13. Rhg1 {[%emt 0:04:17]} g6 14. Bd3 e5 {[%emt 0:26:14]} 15. Qg2 {[%emt 0:21:08]} Rh8 {[%emt 0:00:51]} 16. Nb3 {[%emt 0:02:47]} Nbd7 {[%emt 0:00:18]} 17. f4 {[%emt 0:02:45]} Qc7 18. Kb1 {[%emt 0:05:32]} O-O-O {[%emt 0:09:50]} 19. Qe2 {[%emt 0:02:18]} Nc5 20. a4 {[%emt 0:07:20]} Nxa4 {[%emt 0:09:32]} 21. Nxa4 {[%emt 0:00:46]} bxa4 {[%emt 0:00:02]} 22. Nd2 {[%emt 0:00:16]} d5 {[%emt 0:01:57]} 23. fxe5 {[%emt 0:02:41]} Nxe4 {[%emt 0:00:35]} 24. Nxe4 {[%emt 0:05:15]} dxe4 {[%emt 0:00:08]} 25. Bxa6 {[%emt 0:00:04]} Qc6 {[%emt 0:05:10]} 26. Bb5 Qe6 {[%emt 0:00:19]} 27. Bxa4 {[%emt 0:03:24]} Rxd1+ {[%emt 0:02:40]} 28. Rxd1 {[%emt 0:00:08]} Rd8 {[%emt 0:00:09]} 29. Rxd8+ {[%emt 0:01:59]} Bxd8 {[%emt 0:00:13]} 30. Bb3 {[%emt 0:00:19]} Bd5 31. Bxd5 {[%emt 0:01:37]} Qxd5 {[%emt 0:00:39]} 32. Qg4+ {[%emt 0:00:04]} Kb7 {[%emt 0:00:25]} 33. e6 fxe6 {[%emt 0:02:03]} 34. Qxg6 {[%emt 0:02:12]} Kc6 {[%emt 0:01:58]} 35. Qe8+ {[%emt 0:01:37]} Kb7 {[%emt 0:00:20]} 36. Qa4 {[%emt 0:00:28]} Bf6 {[%emt 0:00:44]} 37. h3 {[%emt 0:02:53]} Qe5 {[%emt 0:00:53]} 38. Qd7+ {[%emt 0:00:31]} Kb8 {[%emt 0:00:25]} 39. c3 {[%emt 0:00:26]} Qd5 {[%emt 0:00:36]} 40. Bf4+ {[%emt 0:00:26]} 1-0

[Event "24th Barcelona Open-A 2019"]
[Site "Barcelona"]
[Date "2019.10.04"]
[Round "8.13"]
[White "Gomez Anadon, Daniel"]
[Black "Herraiz Hidalgo, Herminio"]
[Result "1/2-1/2"]
[ECO "C00"]
[WhiteElo "2245"]
[BlackElo "2410"]
[Annotator "NA"]
[PlyCount "34"]
[EventDate "2019.09.27"]
[EventType "swiss"]
[EventCountry "ESP"]
[SourceTitle "playchess.com"]
[Source "ChessBase"]
[SourceQuality "1"]
[TimeControl "5400+30"]

1. e4 {[%emt 0:00:00]} e6 {[%emt 0:00:00]} 2. d3 {[%emt 0:00:00]} c5 {[%emt 0:00:04]} 3. Nf3 {[%emt 0:00:07]} Nc6 {[%emt 0:00:18]} 4. g3 {[%emt 0:00:12]} g6 {[%emt 0:00:27]} 5. Bg2 {[%emt 0:00:35]} Bg7 {[%emt 0:00:16]} 6. O-O {[%emt 0:00:22]} Nge7 {[%emt 0:00:25]} 7. c3 {[%emt 0:01:25]} O-O {[%emt 0:00:51]} 8. d4 {[%emt 0:04:26]} cxd4 {[%emt 0:00:58]} 9. cxd4 {[%emt 0:00:06]} d5 {[%emt 0:00:47]} 10. e5 {[%emt 0:02:25]} Bd7 {[%emt 0:06:10]} 11. Nc3 {[%emt 0:01:12]} a6 {[%emt 0:02:08]} 12. Re1 {[%emt 0:01:42]} f6 {[%emt 0:03:56]} 13. exf6 {[%emt 0:01:57]} Rxf6 {[%emt 0:02:34]} 14. Bg5 {[%emt 0:06:06]} Rf7 {[%emt 0:03:33]} 15. Qd2 {[%emt 0:10:01]} Qf8 {[%emt 0:24:23]} 16. Bf4 {[%emt 0:02:01]} h6 {[%emt 0:07:57]} 17. Ne5 {[%emt 0:02:38]} Nxe5 1/2-1/2

[Event "24th Barcelona Open-A 2019"]
[Site "Barcelona"]
[Date "2019.10.04"]
[Round "8.14"]
[White "Ayats Llobera, Gerard"]
[Black "Purnama, Tirta Chandra"]
[Result "1/2-1/2"]
[ECO "A05"]
[WhiteElo "2384"]
[BlackElo "2300"]
[Annotator "NA"]
[PlyCount "109"]
[EventDate "2019.09.27"]
[EventType "swiss"]
[EventCountry "ESP"]
[SourceTitle "playchess.com"]
[Source "ChessBase"]
[SourceQuality "1"]
[TimeControl "5400+30"]

1. Nf3 {[%emt 0:00:00]} Nf6 {[%emt 0:03:17]} 2. g3 {[%emt 0:00:00]} g6 {[%emt 0:01:31]} 3. b3 {[%emt 0:00:00]} Bg7 {[%emt 0:00:41]} 4. Bb2 {[%emt 0:00:00]} d6 {[%emt 0:04:40]} 5. d4 {[%emt 0:00:42]} O-O {[%emt 0:01:18]} 6. Bg2 {[%emt 0:04:08]} e5 {[%emt 0:02:19]} 7. dxe5 {[%emt 0:00:34]} Nfd7 {[%emt 0:01:12]} 8. O-O {[%emt 0:06:18]} Nc6 {[%emt 0:02:31]} 9. Qc1 {[%emt 0:03:22]} dxe5 {[%emt 0:15:58]} 10. Nc3 {[%emt 0:01:18]} Re8 {[%emt 0:01:09]} 11. Rd1 {[%emt 0:15:31]} e4 {[%emt 0:20:12]} 12. Nd2 {[%emt 0:07:10]} e3 {[%emt 0:03:12]} 13. fxe3 {[%emt 0:06:14]} Nce5 {[%emt 0:01:36]} 14. Nd5 {[%emt 0:04:03]} f5 {[%emt 0:08:47]} 15. Nf4 {[%emt 0:06:28]} c6 {[%emt 0:01:15]} 16. Bd4 {[%emt 0:22:40]} Qe7 {[%emt 0:07:53]} 17. h3 {[%emt 0:04:33]} Nf6 {[%emt 0:10:06]} 18. Qb2 {[%emt 0:09:14]} Ned7 {[%emt 0:09:20]} 19. b4 {[%emt 0:00:49]} g5 {[%emt 0:01:57]} 20. Nd3 {[%emt 0:00:01]} Nh5 {[%emt 0:00:29]} 21. Nf1 {[%emt 0:01:03]} Ndf6 {[%emt 0:00:06]} 22. b5 {[%emt 0:02:27]} Be6 {[%emt 0:01:00]} 23. bxc6 {[%emt 0:00:42]} bxc6 {[%emt 0:00:01]} 24. Qb4 {[%emt 0:00:02]} Qxb4 {[%emt 0:00:59]} 25. Nxb4 {[%emt 0:00:02]} Ne4 {[%emt 0:00:27]} 26. Bxe4 {[%emt 0:03:24]} fxe4 {[%emt 0:00:12]} 27. g4 {[%emt 0:00:14]} Bxd4 {[%emt 0:00:48]} 28. exd4 {[%emt 0:01:08]} Nf4 {[%emt 0:00:07]} 29. Nxc6 {[%emt 0:01:33]} Nxh3+ {[%emt 0:00:47]} 30. Kg2 {[%emt 0:00:39]} Nf4+ {[%emt 0:00:19]} 31. Kf2 {[%emt 0:00:01]} Rac8 {[%emt 0:00:38]} 32. Ne5 {[%emt 0:00:39]} Rxc2 {[%emt 0:00:30]} 33. Rd2 {[%emt 0:00:01]} Rec8 {[%emt 0:00:34]} 34. Rad1 {[%emt 0:01:12]} Bxa2 {[%emt 0:00:33]} 35. Ng3 {[%emt 0:00:01]} Bd5 {[%emt 0:00:32]} 36. Nf5 Rxd2 {[%emt 0:00:31]} 37. Rxd2 {[%emt 0:00:02]} Kf8 {[%emt 0:00:24]} 38. Nd7+ {[%emt 0:00:25]} Ke8 {[%emt 0:00:29]} 39. Nf6+ {[%emt 0:00:18]} Kd8 {[%emt 0:00:29]} 40. Nxh7 {[%emt 0:00:18]} a5 {[%emt 0:00:36]} 41. Nxg5 {[%emt 0:00:33]} a4 {[%emt 0:00:26]} 42. Ne3 {[%emt 0:00:48]} Bb3 {[%emt 0:00:35]} 43. Nxe4 {[%emt 0:00:44]} a3 {[%emt 0:00:14]} 44. Nc5 {[%emt 0:00:01]} Bf7 {[%emt 0:00:17]} 45. Nc2 {[%emt 0:01:22]} a2 {[%emt 0:00:13]} 46. Na1 {[%emt 0:00:02]} Rb8 {[%emt 0:00:35]} 47. d5 Ke7 {[%emt 0:01:11]} 48. e4 {[%emt 0:02:10]} Kd6 {[%emt 0:00:08]} 49. Ncb3 {[%emt 0:00:01]} Ke5 {[%emt 0:00:36]} 50. Kf3 {[%emt 0:01:11]} Rc8 {[%emt 0:00:41]} 51. Rxa2 {[%emt 0:00:35]} Rc3+ {[%emt 0:00:17]} 52. Kf2 Kxe4 {[%emt 0:00:34]} 53. Nd2+ {[%emt 0:00:34]} Ke5 {[%emt 0:00:45]} 54. Ra5 {[%emt 0:00:58]} Bxd5 {[%emt 0:00:25]} 55. Nab3 {[%emt 0:00:10]} 1/2-1/2

[Event "24th Barcelona Open-A 2019"]
[Site "Barcelona"]
[Date "2019.10.04"]
[Round "8.15"]
[White "Serarols Mabras, Bernat"]
[Black "Piedra Salabarria, Ernesto"]
[Result "1-0"]
[ECO "D70"]
[WhiteElo "2333"]
[BlackElo "2287"]
[Annotator "NA"]
[PlyCount "95"]
[EventDate "2019.09.27"]
[EventType "swiss"]
[EventCountry "ESP"]
[SourceTitle "playchess.com"]
[Source "ChessBase"]
[SourceQuality "1"]
[TimeControl "5400+30"]

1. d4 {[%emt 0:02:46]} Nf6 {[%emt 0:13:26]} 2. c4 g6 {[%emt 0:00:37]} 3. Nf3 {[%emt 0:00:30]} Bg7 {[%emt 0:00:04]} 4. Nc3 {[%emt 0:00:08]} d6 {[%emt 0:00:00]} 5. Bf4 {[%emt 0:00:10]} O-O {[%emt 0:00:42]} 6. e3 {[%emt 0:00:05]} c6 {[%emt 0:02:29]} 7. Be2 {[%emt 0:01:20]} a6 {[%emt 0:02:58]} 8. O-O {[%emt 0:02:52]} Re8 {[%emt 0:00:09]} 9. h3 {[%emt 0:01:01]} Nbd7 {[%emt 0:04:00]} 10. Qc2 {[%emt 0:02:45]} e5 {[%emt 0:00:49]} 11. Bh2 {[%emt 0:01:30]} Qe7 {[%emt 0:00:06]} 12. Rfd1 {[%emt 0:05:02]} e4 {[%emt 0:09:08]} 13. Nd2 {[%emt 0:00:30]} Nf8 {[%emt 0:01:05]} 14. b4 {[%emt 0:01:22]} g5 {[%emt 0:06:08]} 15. a4 {[%emt 0:01:26]} Bf5 {[%emt 0:00:40]} 16. c5 {[%emt 0:04:45]} d5 {[%emt 0:02:15]} 17. b5 {[%emt 0:00:02]} Ne6 {[%emt 0:02:22]} 18. bxc6 {[%emt 0:00:57]} bxc6 {[%emt 0:00:02]} 19. Nb3 {[%emt 0:08:02]} h5 {[%emt 0:10:18]} 20. Na5 {[%emt 0:01:37]} Nd8 {[%emt 0:00:36]} 21. Rdb1 {[%emt 0:02:22]} h4 {[%emt 0:06:24]} 22. Qd1 {[%emt 0:05:27]} Qd7 {[%emt 0:04:31]} 23. Rb6 {[%emt 0:01:57]} g4 {[%emt 0:02:19]} 24. hxg4 {[%emt 0:05:50]} Bxg4 {[%emt 0:02:52]} 25. Rab1 {[%emt 0:01:51]} Rc8 {[%emt 0:06:11]} 26. Rb8 {[%emt 0:03:53]} h3 {[%emt 0:03:29]} 27. Bg3 {[%emt 0:04:50]} Kh7 {[%emt 0:01:36]} 28. Bxg4 {[%emt 0:04:38]} Nxg4 {[%emt 0:00:01]} 29. gxh3 {[%emt 0:00:24]} Nf6 {[%emt 0:00:07]} 30. Kg2 {[%emt 0:00:47]} Bh6 {[%emt 0:01:07]} 31. Ne2 {[%emt 0:13:08]} Rg8 {[%emt 0:00:38]} 32. Kh2 {[%emt 0:06:03]} Rxb8 {[%emt 0:03:32]} 33. Rxb8 {[%emt 0:01:47]} Nh5 {[%emt 0:00:42]} 34. Nf4 {[%emt 0:03:57]} Nxf4 {[%emt 0:03:53]} 35. exf4 {[%emt 0:00:56]} Qf5 {[%emt 0:02:55]} 36. Rxd8 {[%emt 0:03:10]} Rxd8 {[%emt 0:00:22]} 37. Nxc6 {[%emt 0:00:02]} Re8 {[%emt 0:01:16]} 38. Qg4 {[%emt 0:00:13]} Qe6 {[%emt 0:04:37]} 39. Ne5 {[%emt 0:01:04]} Rg8 {[%emt 0:01:43]} 40. f5 {[%emt 0:01:48]} Qf6 {[%emt 0:01:38]} 41. Qh5 {[%emt 0:00:02]} Rg5 {[%emt 0:02:07]} 42. Ng4 {[%emt 0:01:03]} Rxg4 {[%emt 0:00:34]} 43. hxg4 {[%emt 0:00:13]} e3 {[%emt 0:00:30]} 44. fxe3 {[%emt 0:00:18]} Kg8 {[%emt 0:00:30]} 45. Be5 {[%emt 0:00:39]} Qc6 {[%emt 0:00:29]} 46. g5 {[%emt 0:00:06]} Qxa4 {[%emt 0:00:31]} 47. Qxh6 {[%emt 0:00:06]} Qc2+ {[%emt 0:00:30]} 48. Kg3 {[%emt 0:00:02]} 1-0